[Event "*** Titled Tuesday Blitz"]
[Site "Chess.com"]
[Date "2020.11.03"]
[Round "7"]
[White "esrosenberg"]
[Black "elisak43"]
[Result "0-1"]
[WhiteElo "2337"]
[BlackElo "2493"]
[TimeControl "180+1"]
[EndTime "11:21:55 PST"]
[Termination "elisak43 won on time"]

1. d4 {[%clk 0:03:00.9]} 1... f5 {[%clk 0:02:17.7]} 2. Qd3 {[%clk 0:02:59]} 2...
d5 {[%clk 0:02:16.5]} 3. g4 {[%clk 0:02:58.3]} 3... fxg4 {[%clk 0:02:11.6]} 4.
h3 {[%clk 0:02:58.6]} 4... Nf6 {[%clk 0:01:55.6]} 5. hxg4 {[%clk 0:02:47.6]}
5... Bxg4 {[%clk 0:01:56.5]} 6. Bh3 {[%clk 0:02:47.6]} 6... Qd7 {[%clk
0:01:52.7]} 7. Bg5 {[%clk 0:02:34.5]} 7... Bxh3 {[%clk 0:01:49.2]} 8. Nxh3
{[%clk 0:02:30.5]} 8... Nc6 {[%clk 0:01:48.4]} 9. Nf4 {[%clk 0:02:07.4]} 9...
O-O-O {[%clk 0:01:43.5]} 10. c3 {[%clk 0:01:59.4]} 10... e5 {[%clk 0:01:41.6]}
11. Ng6 {[%clk 0:01:51.9]} 11... Rg8 {[%clk 0:01:22.3]} 12. Nxe5 {[%clk
0:01:47.8]} 12... Qe6 {[%clk 0:00:59.1]} 13. Nxc6 {[%clk 0:01:34.2]} 13... Qxc6
{[%clk 0:01:00]} 14. Qf5+ {[%clk 0:01:22.9]} 14... Qd7 {[%clk 0:01:00.1]} 15.
Qxd7+ {[%clk 0:01:20.6]} 15... Rxd7 {[%clk 0:01:01]} 16. Bxf6 {[%clk 0:01:17.5]}
16... gxf6 {[%clk 0:01:01.9]} 17. Nd2 {[%clk 0:01:13.9]} 17... Bd6 {[%clk
0:00:58.2]} 18. O-O-O {[%clk 0:01:07.9]} 18... Rdg7 {[%clk 0:00:58]} 19. e3
{[%clk 0:00:56.2]} 19... Kd7 {[%clk 0:00:57.4]} 20. f4 {[%clk 0:00:55.8]} 20...
Ke6 {[%clk 0:00:55.1]} 21. Nf3 {[%clk 0:00:55.3]} 21... Kf5 {[%clk 0:00:53]} 22.
Nd2 {[%clk 0:00:37.1]} 22... Re7 {[%clk 0:00:44.8]} 23. Rh5+ {[%clk 0:00:34]}
23... Ke6 {[%clk 0:00:45.1]} 24. Rdh1 {[%clk 0:00:27.6]} 24... Rgg7 {[%clk
0:00:42.8]} 25. Kc2 {[%clk 0:00:21.8]} 25... Kd7 {[%clk 0:00:40]} 26. Rxd5
{[%clk 0:00:20.9]} 26... Rxe3 {[%clk 0:00:39.9]} 27. Nc4 {[%clk 0:00:21.1]}
27... Rf3 {[%clk 0:00:34.6]} 28. Nxd6 {[%clk 0:00:16.8]} 28... cxd6 {[%clk
0:00:35.5]} 29. Rdh5 {[%clk 0:00:16.7]} 29... Rxf4 {[%clk 0:00:33.4]} 30. Rxh7
{[%clk 0:00:16.8]} 30... Rxh7 {[%clk 0:00:33.8]} 31. Rxh7+ {[%clk 0:00:16.5]}
31... Kc6 {[%clk 0:00:34.7]} 32. Kd3 {[%clk 0:00:16.2]} 32... Rf2 {[%clk
0:00:32]} 33. c4 {[%clk 0:00:15.2]} 33... Rxb2 {[%clk 0:00:31.3]} 34. d5+ {[%clk
0:00:15.6]} 34... Kb6 {[%clk 0:00:28.3]} 35. a4 {[%clk 0:00:14.4]} 35... Ka5
{[%clk 0:00:22.5]} 36. Rd7 {[%clk 0:00:10.8]} 36... Rb6 {[%clk 0:00:22.7]} 37.
Rf7 {[%clk 0:00:10]} 37... Kxa4 {[%clk 0:00:22.5]} 38. Rxf6 {[%clk 0:00:10.4]}
38... Kb4 {[%clk 0:00:22.8]} 39. Kd4 {[%clk 0:00:10.8]} 39... a5 {[%clk
0:00:21.6]} 40. Rf1 {[%clk 0:00:09.8]} 40... a4 {[%clk 0:00:21.9]} 41. Rb1+
{[%clk 0:00:09.7]} 41... Ka5 {[%clk 0:00:22.3]} 42. Rc1 {[%clk 0:00:08.4]} 42...
Rb4 {[%clk 0:00:20.2]} 43. Rh1 {[%clk 0:00:06.4]} 43... a3 {[%clk 0:00:19.2]}
44. Rh8 {[%clk 0:00:06.9]} 44... Rb6 {[%clk 0:00:19.4]} 45. Rh2 {[%clk
0:00:05.8]} 45... Ka4 {[%clk 0:00:18.8]} 46. c5 {[%clk 0:00:05.6]} 46... dxc5+
{[%clk 0:00:17.2]} 47. Kxc5 {[%clk 0:00:05.8]} 47... Rb5+ {[%clk 0:00:17.9]} 48.
Kd6 {[%clk 0:00:05.1]} 48... Rb2 {[%clk 0:00:17.8]} 49. Rh4+ {[%clk 0:00:04.3]}
49... Rb4 {[%clk 0:00:17.1]} 50. Rh2 {[%clk 0:00:04.6]} 50... b5 {[%clk
0:00:17.2]} 51. Kc5 {[%clk 0:00:03.8]} 51... Rc4+ {[%clk 0:00:17.6]} 52. Kb6
{[%clk 0:00:02.8]} 52... b4 {[%clk 0:00:16.1]} 53. d6 {[%clk 0:00:02.7]} 53...
Rd4 {[%clk 0:00:15.4]} 54. Kc5 {[%clk 0:00:03]} 54... Rd1 {[%clk 0:00:14.9]} 55.
Rh8 {[%clk 0:00:01.9]} 55... Rc1+ {[%clk 0:00:13.4]} 56. Kd5 {[%clk 0:00:01.1]}
56... a2 {[%clk 0:00:13.6]} 57. Ra8+ {[%clk 0:00:01.2]} 57... Kb3 {[%clk
0:00:13.9]} 58. d7 {[%clk 0:00:01.1]} 58... a1=Q {[%clk 0:00:12.9]} 0-1

[Event "*** Titled Tuesday Blitz"]
[Site "Chess.com"]
[Date "2020.11.03"]
[Round "7"]
[White "MarcoRiehle"]
[Black "Lady_Nika"]
[Result "1-0"]
[WhiteElo "2694"]
[BlackElo "2447"]
[TimeControl "180+1"]
[EndTime "11:21:56 PST"]
[Termination "MarcoRiehle won by checkmate"]

1. e4 {[%clk 0:03:00.9]} 1... e6 {[%clk 0:02:59.7]} 2. c4 {[%clk 0:03:00.2]}
2... c5 {[%clk 0:02:55.8]} 3. Nf3 {[%clk 0:02:59.3]} 3... Nc6 {[%clk 0:02:56]}
4. d4 {[%clk 0:02:58.9]} 4... cxd4 {[%clk 0:02:55.8]} 5. Nxd4 {[%clk 0:02:59.8]}
5... Nf6 {[%clk 0:02:55.1]} 6. Nc3 {[%clk 0:02:59.4]} 6... Bb4 {[%clk 0:02:54]}
7. Nxc6 {[%clk 0:02:58.1]} 7... bxc6 {[%clk 0:02:51.4]} 8. Bd3 {[%clk
0:02:57.3]} 8... Qa5 {[%clk 0:02:48.6]} 9. Bd2 {[%clk 0:02:55.9]} 9... O-O
{[%clk 0:02:41.8]} 10. O-O {[%clk 0:02:54.2]} 10... d5 {[%clk 0:02:38.2]} 11.
cxd5 {[%clk 0:02:53.2]} 11... exd5 {[%clk 0:02:36.8]} 12. e5 {[%clk 0:02:49.8]}
12... Nd7 {[%clk 0:02:34.7]} 13. Re1 {[%clk 0:02:49]} 13... Nc5 {[%clk
0:02:34.3]} 14. Bc2 {[%clk 0:02:46.8]} 14... d4 {[%clk 0:02:25.5]} 15. Ne4
{[%clk 0:02:18.6]} 15... Bxd2 {[%clk 0:01:44.7]} 16. Nxd2 {[%clk 0:02:01.9]}
16... Ba6 {[%clk 0:01:40.9]} 17. Nb3 {[%clk 0:01:57.7]} 17... Nxb3 {[%clk
0:01:33.7]} 18. Bxb3 {[%clk 0:01:58.6]} 18... c5 {[%clk 0:01:27.7]} 19. Rc1
{[%clk 0:01:48]} 19... Rad8 {[%clk 0:01:21.6]} 20. e6 {[%clk 0:00:48.6]} 20...
fxe6 {[%clk 0:01:12.1]} 21. Rxe6 {[%clk 0:00:49.5]} 21... Kh8 {[%clk 0:01:10.5]}
22. h3 {[%clk 0:00:47.1]} 22... c4 {[%clk 0:00:56.9]} 23. Bxc4 {[%clk
0:00:45.5]} 23... Bxc4 {[%clk 0:00:55.6]} 24. Rxc4 {[%clk 0:00:46.4]} 24... Qf5
{[%clk 0:00:52.8]} 25. Re2 {[%clk 0:00:42.7]} 25... d3 {[%clk 0:00:52]} 26. Rd2
{[%clk 0:00:42.7]} 26... Rd6 {[%clk 0:00:44.6]} 27. Rc3 {[%clk 0:00:40.4]} 27...
Kg8 {[%clk 0:00:29.2]} 28. Qb3+ {[%clk 0:00:33.7]} 28... Kh8 {[%clk 0:00:28.7]}
29. Rcxd3 {[%clk 0:00:33.5]} 29... Re6 {[%clk 0:00:22.4]} 30. Re3 {[%clk
0:00:24.7]} 30... Rg6 {[%clk 0:00:13.4]} 31. Rf3 {[%clk 0:00:21.8]} 31... Qc8
{[%clk 0:00:10.6]} 32. Rxf8+ {[%clk 0:00:19.6]} 32... Qxf8 {[%clk 0:00:10.4]}
33. Qf3 {[%clk 0:00:17.7]} 33... Rf6 {[%clk 0:00:09.7]} 34. Qe3 {[%clk
0:00:16.9]} 34... h6 {[%clk 0:00:08.3]} 35. Rd7 {[%clk 0:00:16.5]} 35... Qb4
{[%clk 0:00:05.8]} 36. Rd8+ {[%clk 0:00:13.5]} 36... Kh7 {[%clk 0:00:05.6]} 37.
Qd3+ {[%clk 0:00:13.2]} 37... Rg6 {[%clk 0:00:05.9]} 38. g3 {[%clk 0:00:07.1]}
38... Qe1+ {[%clk 0:00:05.9]} 39. Kg2 {[%clk 0:00:07]} 39... Qe7 {[%clk
0:00:06.6]} 40. Rd4 {[%clk 0:00:06.6]} 40... Qb7+ {[%clk 0:00:06.5]} 41. Kh2
{[%clk 0:00:06.9]} 41... Qxb2 {[%clk 0:00:05.7]} 42. Qf5 {[%clk 0:00:03.3]}
42... Qb6 {[%clk 0:00:03.3]} 43. Rg4 {[%clk 0:00:02.8]} 43... Qf6 {[%clk
0:00:03.7]} 44. Qxg6+ {[%clk 0:00:02.2]} 44... Qxg6 {[%clk 0:00:04.3]} 45. Rxg6
{[%clk 0:00:03.1]} 45... Kxg6 {[%clk 0:00:05.1]} 46. g4 {[%clk 0:00:04]} 46...
Kf6 {[%clk 0:00:05.5]} 47. Kg3 {[%clk 0:00:04.9]} 47... Ke5 {[%clk 0:00:06.1]}
48. f3 {[%clk 0:00:05.5]} 48... Kd4 {[%clk 0:00:05.1]} 49. f4 {[%clk 0:00:05.6]}
49... a5 {[%clk 0:00:05.3]} 50. f5 {[%clk 0:00:05.8]} 50... a4 {[%clk
0:00:05.4]} 51. Kf4 {[%clk 0:00:05.6]} 51... a3 {[%clk 0:00:05.4]} 52. h4 {[%clk
0:00:06.1]} 52... Kc3 {[%clk 0:00:05.6]} 53. g5 {[%clk 0:00:06.8]} 53... hxg5+
{[%clk 0:00:06]} 54. hxg5 {[%clk 0:00:07.7]} 54... Kb2 {[%clk 0:00:06.5]} 55. f6
{[%clk 0:00:08.2]} 55... gxf6 {[%clk 0:00:06.3]} 56. g6 {[%clk 0:00:08.7]} 56...
Kxa2 {[%clk 0:00:07.2]} 57. g7 {[%clk 0:00:09.6]} 57... Kb1 {[%clk 0:00:06.9]}
58. g8=Q {[%clk 0:00:10.5]} 58... a2 {[%clk 0:00:07.2]} 59. Qb3+ {[%clk
0:00:11]} 59... Ka1 {[%clk 0:00:05.7]} 60. Qc2 {[%clk 0:00:11.5]} 60... f5
{[%clk 0:00:05.4]} 61. Qc1# {[%clk 0:00:12.4]} 1-0

[Event "*** Titled Tuesday Blitz"]
[Site "Chess.com"]
[Date "2020.11.03"]
[Round "7"]
[White "GregShahade"]
[Black "Chessdreamer2020"]
[Result "0-1"]
[WhiteElo "2637"]
[BlackElo "2514"]
[TimeControl "180+1"]
[EndTime "11:21:57 PST"]
[Termination "Chessdreamer2020 won by resignation"]

1. e4 {[%clk 0:03:00.9]} 1... d6 {[%clk 0:02:59.3]} 2. d4 {[%clk 0:03:00.6]}
2... Nf6 {[%clk 0:02:59.4]} 3. Nc3 {[%clk 0:03:01.2]} 3... e5 {[%clk 0:02:59.1]}
4. Nge2 {[%clk 0:03:00.8]} 4... c6 {[%clk 0:02:57.9]} 5. a4 {[%clk 0:02:53.5]}
5... Be7 {[%clk 0:02:53.7]} 6. g3 {[%clk 0:02:53.4]} 6... O-O {[%clk 0:02:53.5]}
7. Bg2 {[%clk 0:02:53.8]} 7... Re8 {[%clk 0:02:53.3]} 8. O-O {[%clk 0:02:54.4]}
8... Bf8 {[%clk 0:02:49.9]} 9. h3 {[%clk 0:02:52.1]} 9... Nbd7 {[%clk
0:02:42.6]} 10. Be3 {[%clk 0:02:48.3]} 10... exd4 {[%clk 0:02:41.6]} 11. Bxd4
{[%clk 0:02:29.1]} 11... Nc5 {[%clk 0:02:34.6]} 12. Bxc5 {[%clk 0:02:20.8]}
12... dxc5 {[%clk 0:02:34.3]} 13. Qxd8 {[%clk 0:02:17.4]} 13... Rxd8 {[%clk
0:02:34.5]} 14. e5 {[%clk 0:02:17.8]} 14... Nd5 {[%clk 0:02:33.7]} 15. Ne4
{[%clk 0:02:02.3]} 15... Nb4 {[%clk 0:02:28.3]} 16. c3 {[%clk 0:01:33.3]} 16...
Nd3 {[%clk 0:02:25.3]} 17. Rad1 {[%clk 0:01:33.5]} 17... Be6 {[%clk 0:02:24.3]}
18. f4 {[%clk 0:01:31]} 18... Nxb2 {[%clk 0:02:19.6]} 19. Rb1 {[%clk 0:01:29.7]}
19... Nxa4 {[%clk 0:02:14.9]} 20. Rxb7 {[%clk 0:01:29.7]} 20... Rdb8 {[%clk
0:02:10.6]} 21. Rfb1 {[%clk 0:01:26.5]} 21... Nb6 {[%clk 0:02:05]} 22. Rc7
{[%clk 0:00:57.8]} 22... Rc8 {[%clk 0:01:49.6]} 23. Rb7 {[%clk 0:00:49.8]} 23...
Bc4 {[%clk 0:01:40.5]} 24. Kf2 {[%clk 0:00:47.4]} 24... Ba6 {[%clk 0:01:39.3]}
25. R1xb6 {[%clk 0:00:31.2]} 25... axb6 {[%clk 0:01:37.5]} 26. Rxb6 {[%clk
0:00:32.1]} 26... Bb5 {[%clk 0:01:35.7]} 27. c4 {[%clk 0:00:28.9]} 27... Bxc4
{[%clk 0:01:34.4]} 28. N2c3 {[%clk 0:00:27.5]} 28... Rab8 {[%clk 0:01:30.5]} 29.
Rxb8 {[%clk 0:00:22.9]} 29... Rxb8 {[%clk 0:01:30.6]} 30. Nd2 {[%clk 0:00:23.3]}
30... Rb2 {[%clk 0:01:29.3]} 31. Ke3 {[%clk 0:00:23.5]} 31... Rc2 {[%clk
0:01:15.3]} 32. Nce4 {[%clk 0:00:12.2]} 32... Bb5 {[%clk 0:01:11.3]} 33. f5
{[%clk 0:00:12.1]} 33... c4 {[%clk 0:01:06.6]} 34. Bf3 {[%clk 0:00:10.9]} 34...
c3 {[%clk 0:01:05.2]} 35. Nb3 {[%clk 0:00:09.8]} 35... Rb2 {[%clk 0:01:03]} 36.
Nc1 {[%clk 0:00:06.7]} 36... Ba3 {[%clk 0:00:52.9]} 37. Nxc3 {[%clk 0:00:05.9]}
37... Rc2 {[%clk 0:00:48.1]} 38. N1e2 {[%clk 0:00:05.9]} 38... Bc5+ {[%clk
0:00:46.6]} 39. Kf4 {[%clk 0:00:04.9]} 39... Bxe2 {[%clk 0:00:36.9]} 40. Nxe2
{[%clk 0:00:04.8]} 40... Bb6 {[%clk 0:00:26.3]} 41. Ke4 {[%clk 0:00:04.4]} 41...
Kf8 {[%clk 0:00:22.9]} 42. Nf4 {[%clk 0:00:04.7]} 42... Ke7 {[%clk 0:00:21.8]}
43. Kd3 {[%clk 0:00:04.9]} 43... Ra2 {[%clk 0:00:21]} 44. Bxc6 {[%clk
0:00:04.9]} 44... Ra3+ {[%clk 0:00:20.4]} 45. Ke4 {[%clk 0:00:05.5]} 45... Rxg3
{[%clk 0:00:20.3]} 46. Nd5+ {[%clk 0:00:05.8]} 46... Kd8 {[%clk 0:00:19.4]} 47.
Nxb6 {[%clk 0:00:06.6]} 47... Kc7 {[%clk 0:00:20.1]} 48. Bd5 {[%clk 0:00:05.8]}
48... Kxb6 {[%clk 0:00:19.5]} 49. Bxf7 {[%clk 0:00:06.5]} 49... Kc7 {[%clk
0:00:19.6]} 50. e6 {[%clk 0:00:06.8]} 50... Kd6 {[%clk 0:00:18.2]} 51. h4 {[%clk
0:00:07.2]} 51... Rg4+ {[%clk 0:00:16.6]} 52. Kf3 {[%clk 0:00:07.7]} 52... Rxh4
{[%clk 0:00:16.8]} 53. Bg8 {[%clk 0:00:08.3]} 53... h6 {[%clk 0:00:16.2]} 54.
Bf7 {[%clk 0:00:08.1]} 54... Rb4 {[%clk 0:00:15.5]} 55. Bg6 {[%clk 0:00:08]}
55... Ke7 {[%clk 0:00:15.6]} 56. Kg3 {[%clk 0:00:08]} 56... Kf6 {[%clk
0:00:15.9]} 57. Kf3 {[%clk 0:00:08.4]} 57... Ra4 {[%clk 0:00:15.1]} 58. Kg3
{[%clk 0:00:08.7]} 58... Ra3+ {[%clk 0:00:15]} 59. Kg4 {[%clk 0:00:09]} 59...
Ra4+ {[%clk 0:00:15.3]} 60. Kg3 {[%clk 0:00:09.5]} 60... Ra1 {[%clk 0:00:15.3]}
61. Kg4 {[%clk 0:00:09.8]} 61... Rg1+ {[%clk 0:00:14.9]} 62. Kh3 {[%clk
0:00:09.9]} 62... Rxg6 {[%clk 0:00:15]} 63. fxg6 {[%clk 0:00:10.4]} 63... Kxg6
{[%clk 0:00:15.4]} 64. Kg4 {[%clk 0:00:10.9]} 64... Kf6 {[%clk 0:00:15.6]} 65.
Kh5 {[%clk 0:00:11.8]} 65... Kxe6 {[%clk 0:00:15.8]} 66. Kg6 {[%clk 0:00:12.3]}
66... Ke5 {[%clk 0:00:16]} 67. Kxg7 {[%clk 0:00:12.7]} 67... h5 {[%clk
0:00:16.3]} 0-1

[Event "*** Titled Tuesday Blitz"]
[Site "Chess.com"]
[Date "2020.11.03"]
[Round "7"]
[White "anasta10"]
[Black "Nikolaj_6"]
[Result "1/2-1/2"]
[WhiteElo "2400"]
[BlackElo "2541"]
[TimeControl "180+1"]
[EndTime "11:22:01 PST"]
[Termination "Game drawn - insufficient material"]

1. d4 {[%clk 0:02:54.4]} 1... Nf6 {[%clk 0:02:59.6]} 2. c4 {[%clk 0:02:54.2]}
2... e6 {[%clk 0:02:58.9]} 3. Nc3 {[%clk 0:02:54.4]} 3... c5 {[%clk 0:02:58.6]}
4. d5 {[%clk 0:02:54.2]} 4... exd5 {[%clk 0:02:59.5]} 5. cxd5 {[%clk 0:02:55.1]}
5... d6 {[%clk 0:03:00.1]} 6. Nf3 {[%clk 0:02:52.9]} 6... g6 {[%clk 0:02:59.9]}
7. Bf4 {[%clk 0:02:52.8]} 7... Bg7 {[%clk 0:02:59.1]} 8. Qa4+ {[%clk 0:02:49.5]}
8... Bd7 {[%clk 0:02:58.9]} 9. Qb3 {[%clk 0:02:48.8]} 9... Qc7 {[%clk
0:02:58.9]} 10. e4 {[%clk 0:02:45]} 10... O-O {[%clk 0:02:58.2]} 11. Bd3 {[%clk
0:02:40.4]} 11... Na6 {[%clk 0:02:50.8]} 12. O-O {[%clk 0:02:39.1]} 12... Nb4
{[%clk 0:02:41.9]} 13. Bb5 {[%clk 0:02:31.5]} 13... Bxb5 {[%clk 0:02:07.4]} 14.
Nxb5 {[%clk 0:02:27.4]} 14... Qd7 {[%clk 0:02:07.3]} 15. Nxd6 {[%clk 0:02:26.9]}
15... Nh5 {[%clk 0:02:05.1]} 16. Qe3 {[%clk 0:02:06.7]} 16... Nc2 {[%clk
0:01:48.7]} 17. Qd2 {[%clk 0:02:05.9]} 17... Nxa1 {[%clk 0:01:48.5]} 18. Rxa1
{[%clk 0:02:06.3]} 18... Nxf4 {[%clk 0:01:46.5]} 19. Qxf4 {[%clk 0:02:06.2]}
19... Rad8 {[%clk 0:01:27.4]} 20. Nc4 {[%clk 0:02:02]} 20... b5 {[%clk
0:01:26.9]} 21. Nce5 {[%clk 0:02:00.3]} 21... Qd6 {[%clk 0:01:25]} 22. g3 {[%clk
0:01:41.2]} 22... f5 {[%clk 0:01:22.1]} 23. Nc6 {[%clk 0:01:34.6]} 23... Qxf4
{[%clk 0:01:17.1]} 24. gxf4 {[%clk 0:01:35.5]} 24... fxe4 {[%clk 0:01:17]} 25.
Nxd8 {[%clk 0:01:34.5]} 25... Rxd8 {[%clk 0:01:10.6]} 26. Ng5 {[%clk 0:01:32.5]}
26... Rxd5 {[%clk 0:01:05.1]} 27. Nxe4 {[%clk 0:01:32]} 27... c4 {[%clk
0:00:58]} 28. Rb1 {[%clk 0:01:21.8]} 28... Rd4 {[%clk 0:00:54.9]} 29. Nc3 {[%clk
0:01:21.5]} 29... a6 {[%clk 0:00:51.1]} 30. b3 {[%clk 0:01:15.3]} 30... b4
{[%clk 0:00:42.5]} 31. Ne2 {[%clk 0:01:08.7]} 31... Rd2 {[%clk 0:00:41.7]} 32.
Kf1 {[%clk 0:01:08.1]} 32... c3 {[%clk 0:00:41.4]} 33. Ke1 {[%clk 0:00:59.4]}
33... Rxa2 {[%clk 0:00:38.6]} 34. Rd1 {[%clk 0:00:41.3]} 34... c2 {[%clk
0:00:33.1]} 35. Rd8+ {[%clk 0:00:37.9]} 35... Kf7 {[%clk 0:00:32.7]} 36. Kd2
{[%clk 0:00:38.5]} 36... Bh6 {[%clk 0:00:26]} 37. Kc1 {[%clk 0:00:32.5]} 37...
a5 {[%clk 0:00:23.2]} 38. Rd7+ {[%clk 0:00:26.2]} 38... Kg8 {[%clk 0:00:23.2]}
39. Rd8+ {[%clk 0:00:25.8]} 39... Kg7 {[%clk 0:00:21.3]} 40. Rd7+ {[%clk
0:00:26]} 40... Kf6 {[%clk 0:00:20]} 41. Rxh7 {[%clk 0:00:26.3]} 41... Bg7
{[%clk 0:00:20.1]} 42. Nd4 {[%clk 0:00:20.7]} 42... a4 {[%clk 0:00:16.2]} 43.
bxa4 {[%clk 0:00:20.4]} 43... Kf7 {[%clk 0:00:15.1]} 44. Nxc2 {[%clk 0:00:19.9]}
44... b3 {[%clk 0:00:15.1]} 45. Rxg7+ {[%clk 0:00:16.2]} 45... Kxg7 {[%clk
0:00:14.1]} 46. Nd4 {[%clk 0:00:16.6]} 46... b2+ {[%clk 0:00:11.9]} 47. Kb1
{[%clk 0:00:16.2]} 47... Rxa4 {[%clk 0:00:12.8]} 48. Ne2 {[%clk 0:00:15]} 48...
Rb4 {[%clk 0:00:12.1]} 49. Nc3 {[%clk 0:00:13.8]} 49... Kh6 {[%clk 0:00:09.9]}
50. Nd5 {[%clk 0:00:12.7]} 50... Rd4 {[%clk 0:00:08.6]} 51. Ne3 {[%clk
0:00:12.3]} 51... Rd2 {[%clk 0:00:08.1]} 52. h3 {[%clk 0:00:10.9]} 52... Kh5
{[%clk 0:00:08]} 53. Ng4 {[%clk 0:00:10.5]} 53... Kh4 {[%clk 0:00:06.9]} 54. Ne5
{[%clk 0:00:10.8]} 54... Kh5 {[%clk 0:00:05.4]} 55. Ng4 {[%clk 0:00:10.9]} 55...
Re2 {[%clk 0:00:04.8]} 56. Ka2 {[%clk 0:00:10.7]} 56... Kh4 {[%clk 0:00:04.1]}
57. Ne5 {[%clk 0:00:09.6]} 57... g5 {[%clk 0:00:04.6]} 58. Nf3+ {[%clk
0:00:08.8]} 58... Kxh3 {[%clk 0:00:05]} 59. Nxg5+ {[%clk 0:00:09.3]} 59... Kg4
{[%clk 0:00:05.4]} 60. Nf7 {[%clk 0:00:09]} 60... Kxf4 {[%clk 0:00:05.5]} 61.
Nd6 {[%clk 0:00:09.4]} 61... Kf3 {[%clk 0:00:05.3]} 62. Nc4 {[%clk 0:00:09.9]}
62... Kxf2 {[%clk 0:00:05.7]} 63. Nxb2 {[%clk 0:00:10.3]} 63... Rxb2+ {[%clk
0:00:05.9]} 64. Kxb2 {[%clk 0:00:10.4]} 1/2-1/2

[Event "*** Titled Tuesday Blitz"]
[Site "Chess.com"]
[Date "2020.11.03"]
[Round "7"]
[White "AnishOnYoutube"]
[Black "ChessWarrior7197"]
[Result "1/2-1/2"]
[WhiteElo "2979"]
[BlackElo "3014"]
[TimeControl "180+1"]
[EndTime "11:22:02 PST"]
[Termination "Game drawn by agreement"]

1. c4 {[%clk 0:02:59.8]} 1... c6 {[%clk 0:02:58.8]} 2. Nf3 {[%clk 0:02:59.4]}
2... d5 {[%clk 0:02:59.2]} 3. d4 {[%clk 0:02:58.9]} 3... Nf6 {[%clk 0:02:58.8]}
4. Nc3 {[%clk 0:02:59.6]} 4... a6 {[%clk 0:02:58.3]} 5. e3 {[%clk 0:02:54.6]}
5... Bf5 {[%clk 0:02:56.4]} 6. cxd5 {[%clk 0:02:36.5]} 6... cxd5 {[%clk
0:02:56.1]} 7. Ne5 {[%clk 0:02:36.3]} 7... Nc6 {[%clk 0:02:51.7]} 8. Bd2 {[%clk
0:02:33.5]} 8... e6 {[%clk 0:02:32.5]} 9. Qa4 {[%clk 0:02:18.3]} 9... Qb6 {[%clk
0:02:09.1]} 10. Bb5 {[%clk 0:01:59.2]} 10... Rc8 {[%clk 0:02:02]} 11. Bxc6+
{[%clk 0:01:59.2]} 11... bxc6 {[%clk 0:02:01.8]} 12. Qb3 {[%clk 0:01:53.3]}
12... Qxb3 {[%clk 0:01:56.8]} 13. axb3 {[%clk 0:01:53.4]} 13... Bd6 {[%clk
0:01:57.7]} 14. f4 {[%clk 0:01:26.1]} 14... Ne4 {[%clk 0:01:38.3]} 15. Rxa6
{[%clk 0:01:19.9]} 15... f6 {[%clk 0:01:26.6]} 16. Nxc6 {[%clk 0:00:34.7]} 16...
Kd7 {[%clk 0:01:20.4]} 17. Na7 {[%clk 0:00:34.8]} 17... Ra8 {[%clk 0:01:05.3]}
18. Nxe4 {[%clk 0:00:34.8]} 18... Bxe4 {[%clk 0:01:04.5]} 19. Kf2 {[%clk
0:00:35.2]} 19... Rhb8 {[%clk 0:01:00.1]} 20. Rha1 {[%clk 0:00:34.5]} 20... Rxb3
{[%clk 0:00:58.3]} 21. Bc3 {[%clk 0:00:27.4]} 21... Bc7 {[%clk 0:00:45.6]} 22.
Ke2 {[%clk 0:00:11.2]} 22... g5 {[%clk 0:00:40.4]} 23. fxg5 {[%clk 0:00:09.8]}
23... fxg5 {[%clk 0:00:41.3]} 24. Nc6 {[%clk 0:00:07.3]} 24... Rxa6 {[%clk
0:00:28.9]} 25. Rxa6 {[%clk 0:00:08.2]} 25... Bxg2 {[%clk 0:00:26.9]} 26. Ne5+
{[%clk 0:00:06.9]} 26... Bxe5 {[%clk 0:00:27.4]} 27. dxe5 {[%clk 0:00:07.8]}
27... Rb7 {[%clk 0:00:25]} 28. Bd4 {[%clk 0:00:07]} 28... Be4 {[%clk 0:00:22.7]}
29. Ra7 {[%clk 0:00:05.5]} 29... Rxa7 {[%clk 0:00:22.5]} 30. Bxa7 {[%clk
0:00:06.4]} 30... h5 {[%clk 0:00:23]} 31. Kf2 {[%clk 0:00:06.5]} 31... h4 {[%clk
0:00:21.9]} 32. Bc5 {[%clk 0:00:06.5]} 32... g4 {[%clk 0:00:21.9]} 33. b4 {[%clk
0:00:05.9]} 33... Bd3 {[%clk 0:00:19.6]} 34. Bf8 {[%clk 0:00:05.6]} 34... Ke8
{[%clk 0:00:19.3]} 35. Bh6 {[%clk 0:00:05.6]} 35... Kf7 {[%clk 0:00:14.3]} 36.
Bg5 {[%clk 0:00:05.6]} 36... Kg6 {[%clk 0:00:08.6]} 37. Bxh4 {[%clk 0:00:05.6]}
37... Kf5 {[%clk 0:00:09.2]} 38. Bg3 {[%clk 0:00:04.6]} 38... Ke4 {[%clk
0:00:08.8]} 39. Bf4 {[%clk 0:00:04.3]} 39... Bb5 {[%clk 0:00:09]} 40. Kg3 {[%clk
0:00:04.2]} 40... Kf5 {[%clk 0:00:09.1]} 41. Bh6 {[%clk 0:00:04.3]} 41... Be2
{[%clk 0:00:07.8]} 42. Bf4 {[%clk 0:00:04.4]} 42... Bb5 {[%clk 0:00:08]} 43. Bh6
{[%clk 0:00:04.5]} 43... Be2 {[%clk 0:00:07.6]} 44. Bg7 {[%clk 0:00:05]} 44...
Bb5 {[%clk 0:00:07.2]} 45. Bf6 {[%clk 0:00:05.4]} 45... Be2 {[%clk 0:00:07.1]}
46. Kf2 {[%clk 0:00:05.7]} 46... Bb5 {[%clk 0:00:07.2]} 47. Ke1 {[%clk
0:00:05.4]} 47... Ke4 {[%clk 0:00:07.8]} 48. Kd2 {[%clk 0:00:05.3]} 48... Bc4
{[%clk 0:00:06.8]} 49. Bg7 {[%clk 0:00:04.9]} 49... Bb5 {[%clk 0:00:07]} 50. Bf6
{[%clk 0:00:05.2]} 50... Bc4 {[%clk 0:00:07.3]} 51. Bg7 {[%clk 0:00:05.7]} 51...
Kf3 {[%clk 0:00:07.7]} 52. Bh6 {[%clk 0:00:05.8]} 52... Ke4 {[%clk 0:00:07.7]}
53. Bf4 {[%clk 0:00:06.2]} 53... d4 {[%clk 0:00:08.2]} 54. Bg5 {[%clk
0:00:06.2]} 54... d3 {[%clk 0:00:06]} 55. Bf4 {[%clk 0:00:06.7]} 55... Bb5
{[%clk 0:00:06]} 56. Bg3 {[%clk 0:00:07.4]} 56... Kf3 {[%clk 0:00:06.2]} 57. Bf4
{[%clk 0:00:08.1]} 57... Ke4 {[%clk 0:00:06.6]} 58. Bg3 {[%clk 0:00:08.7]} 58...
Kd5 {[%clk 0:00:07.1]} 59. Bf4 {[%clk 0:00:09.3]} 59... Kc4 {[%clk 0:00:07.5]}
60. Bg3 {[%clk 0:00:08.8]} 60... Kxb4 {[%clk 0:00:07.9]} 61. Bf4 {[%clk
0:00:09.7]} 61... Kc4 {[%clk 0:00:08.4]} 62. Bg3 {[%clk 0:00:10.6]} 62... Kd5
{[%clk 0:00:08.7]} 63. Bf4 {[%clk 0:00:11.5]} 63... Ke4 {[%clk 0:00:09.2]} 64.
Bg3 {[%clk 0:00:12.4]} 64... Kf3 {[%clk 0:00:09.8]} 65. Bf4 {[%clk 0:00:13.3]}
65... Kg2 {[%clk 0:00:10.4]} 66. Bg3 {[%clk 0:00:14.2]} 1/2-1/2